fUST/lending_fUST_20250614
["ID","MTS","AMOUNT","RATE_DAILY","PERIOD"]
[365719184,1749849041831,-503.34,0.00023834,4]
[365719185,1749849041840,-582.67,0.00023834,4]
[365719186,1749849041849,-752.24,0.00023834,4]
[365719187,1749849041859,-1352.84,0.00023835,4]
[365719188,1749849041868,-520.57,0.00023835,4]
[365719189,1749849041877,-1130.26,0.00023835,4]
[365719190,1749849041887,-761.79,0.00023835,4]
[365719191,1749849041896,-1164.15,0.00023835,4]
[365719192,1749849041905,-460.0,0.00023835,4]
[365719193,1749849041914,-626.84,0.00023835,4]
[365719194,1749849041924,-990.32,0.00023835,4]
[365719195,1749849041933,-460.0,0.00023835,4]
[365719196,1749849041942,-1305.37,0.00023835,4]
[365719197,1749849041951,-897.99,0.00023835,4]
[365719198,1749849041960,-5854.95,0.00023835,4]
[365719199,1749849041969,-460.0,0.00023835,4]
[365719200,1749849041978,-537.68,0.00023835,4]
[365719201,1749849041987,-895.44837804,0.00023866,10]
[365719202,1749849041997,-1500.0,0.00023868,2]
[365719203,1749849042007,-1259.32972544,0.00023875,16]
[365719204,1749849042017,-1285.0,0.00023886,2]
[365719205,1749849042026,-173.9379647,0.00023898,4]
[365719206,1749849042035,-173.9379647,0.00023898,4]
[365719207,1749849042045,-173.9379647,0.00023898,4]
[365719208,1749849042054,-173.93,0.00023898,4]
[365719209,1749849042063,-162.34210038,0.00023898,4]
[365719210,1749849042073,-162.34210038,0.00023898,4]
[365719211,1749849042082,-162.34210038,0.00023898,4]
[365719212,1749849042091,-162.34210038,0.00023898,4]
[365719213,1749849042100,-162.34210038,0.00023898,4]
[365719214,1749849042109,-162.34210038,0.00023898,4]
[365719215,1749849042118,-162.34210038,0.00023898,4]
[365719216,1749849042127,-162.34210038,0.00023898,4]
[365719217,1749849042136,-162.34210038,0.00023898,4]
[365719218,1749849042146,-166.73694563,0.000239,2]
[365719219,1749849042155,-719.25,0.00023915,7]
[365719220,1749849042171,-166.50369972,0.00023918,2]
[365719221,1749849042191,-166.50369971,0.00023918,2]
[365719222,1749849042200,-5000.0,0.00023926,2]
[365719223,1749849042209,-5000.0,0.00023939,2]
[365719224,1749849042218,-500.0,0.0002396,2]
[365719225,1749849042227,-500.0,0.0002396,2]
[365719226,1749849042236,-624.33181802,0.0002396,2]
[365719227,1749849042245,-895.44837804,0.00023969,10]
[365719228,1749849042255,-729.7030954,0.00023973,2]
[365719229,1749849042264,-503.48503408,0.00023973,2]
[365719230,1749849042273,-500.0,0.00023973,2]
[365719231,1749849042282,-500.91748917,0.00023973,2]
[365719232,1749849042291,-500.0,0.00023973,2]
[365719233,1749849042300,-150.0,0.00023973,2]
[365719234,1749849042309,-150.0,0.00023973,2]
[365719235,1749849042318,-22327.64685544,0.00023998,2]
[365719236,1749849042327,-30013.0,0.00024,2]
[365719237,1749849042337,-21505.71113454,0.00024,2]
[365719238,1749849042348,-10010.03909984,0.00024,2]
[365719239,1749849042362,-135910.58659914,0.00024,35]
[365719240,1749849042372,-493.19616532,0.00024,60]
[365719241,1749849042381,-5430.05034855,0.00024,3]
[365719242,1749849042390,-151.0,0.00024,7]
[365719243,1749849042400,-151.0,0.00024,7]
[365719244,1749849042409,-208578.16169976,0.00024,14]
[365719245,1749849042504,-151.0,0.00024,7]
[365719246,1749849042517,-151.0,0.00024,7]
[365719247,1749849042528,-151.0,0.00024,7]
[365719248,1749849042538,-151.0,0.00024,7]
[365719249,1749849042549,-151.0,0.00024,7]
[365719250,1749849042559,-151.0,0.00024,7]
[365719251,1749849042569,-3249.86,0.00024,7]
[365719252,1749849042578,-158.544721,0.00024,7]
[365719253,1749849042587,-158.544721,0.00024,7]
[365719254,1749849042596,-158.544721,0.00024,7]
[365719255,1749849042605,-158.544721,0.00024,7]
[365719256,1749849042615,-151.0,0.00024,7]
[365719257,1749849042624,-151.0,0.00024,7]
[365719258,1749849042633,-151.0,0.00024,7]
[365719259,1749849042642,-151.0,0.00024,7]
[365719260,1749849042651,-151.0,0.00024,7]
[365719261,1749849042662,-151.0,0.00024,7]
[365719262,1749849042671,-151.0,0.00024,7]
[365719263,1749849042681,-151.0,0.00024,7]
[365719264,1749849042691,-151.0,0.00024,7]
[365719265,1749849042701,-151.0,0.00024,7]
[365719266,1749849042711,-158.36,0.00024,2]
[365719267,1749849042720,-835.28007164,0.00024,7]
[365719268,1749849042730,-1551.53,0.00024,7]
[365719269,1749849042739,-1150.672385,0.00024,7]
[365719271,1749849042749,-1150.672385,0.00024,7]
[365719272,1749849042759,-1150.672385,0.00024,7]
[365719273,1749849042769,-1150.672385,0.00024,7]
[365719274,1749849042778,-160.0,0.00024,7]
[365719276,1749849042788,-424.32678023,0.00024,7]
[365719278,1749849042798,-151.0,0.00024,7]
[365719280,1749849042807,-229.78555783,0.00024,7]
[365719282,1749849042817,-160.0,0.00024,7]
[365719284,1749849042827,-151.0,0.00024,7]
[365719285,1749849042836,-719.25,0.00024015,3]
[365719286,1749849042845,-5888.0,0.00024039,2]
[365719287,1749849042856,-150.125,0.00024041,2]
[365719288,1749849042866,-151.498,0.00024043,2]
[365719289,1749849042875,-250.0,0.00024043,2]
[365719290,1749849042885,-244.659,0.00024043,2]
[365719291,1749849042895,-258.376,0.00024043,2]
[365719292,1749849042905,-215.661,0.00024043,2]
[365719293,1749849042914,-964.0,0.00024043,2]
[365719294,1749849042923,-2160.0,0.00024043,2]
[365719295,1749849042932,-653.0,0.00024043,2]
[365719296,1749849042942,-895.44837804,0.00024072,10]
[365719297,1749849042952,-964.0,0.00024079,2]
[365719298,1749849042962,-964.0,0.00024089,2]
[365719299,1749849042971,-151.0,0.00024089,7]
[365719300,1749849042980,-151.0,0.00024089,7]
[365719301,1749849042990,-1500.0,0.00024096,2]
[365719302,1749849042999,-1800.0,0.00024096,2]
[365719303,1749849043009,-162.34,0.000241,4]
[365719304,1749849043019,-25296.08412376,0.000241,2]
[365719306,1749849043121,-566.04,0.000241,2]
[365719308,1749849043168,-698.79,0.00021643,4]
[365719309,1749849043179,-698.79,0.00021917,4]
[365719310,1749849043188,-698.79,0.00022191,4]
[365719311,1749849043197,-698.79,0.00022465,4]
[365719312,1749849043206,-585.78,0.0002249,10]
[365719313,1749849043215,-698.79,0.00022739,4]
[365719314,1749849043225,-698.79,0.00023013,4]
[365719315,1749849043234,-698.79,0.00023287,4]
[365719316,1749849043244,-65509.97799684,0.000241,2]
[365719317,1749849043315,-698.79,0.00023561,4]
[365719318,1749849043325,-698.79,0.00023835,4]
[365719319,1749849043334,-24564.2878794,0.000241,2]
[365719320,1749849043343,-460.0,0.00024108,4]
[365719321,1749849043353,-503.34,0.00024108,4]
[365719322,1749849043362,-582.67,0.00024108,4]
[365719323,1749849043372,-752.24,0.00024108,4]
[365719324,1749849043381,-170.075529,0.00024109,7]
[365719325,1749849043391,-170.075529,0.00024109,7]
[365719326,1749849043400,-151.0,0.00024109,7]
[365719327,1749849043409,-301.655952,0.00024109,7]
[365719328,1749849043418,-301.655952,0.00024109,7]
[365719329,1749849043429,-240.451578,0.00024109,7]
[365719330,1749849043439,-151.0,0.00024109,7]
[365719331,1749849043447,-240.451578,0.00024109,7]
[365719332,1749849043457,-151.0,0.00024109,7]
[365719333,1749849043467,-153.789681,0.00024109,7]
[365719334,1749849043479,-151.0,0.00024109,7]
[365719335,1749849043488,-151.0,0.00024109,7]
[365719336,1749849043500,-151.0,0.00024109,7]
[365719337,1749849043509,-151.0,0.00024109,7]
[365719338,1749849043519,-151.0,0.00024109,7]
[365719339,1749849043529,-152.152704,0.00024109,7]
[365719340,1749849043538,-1352.84,0.00024109,4]
[365719341,1749849043551,-520.57,0.00024109,4]
[365719342,1749849043561,-1130.26,0.00024109,4]
[365719343,1749849043570,-761.79,0.00024109,4]
[365719344,1749849043580,-1164.15,0.00024109,4]
[365719345,1749849043590,-460.0,0.00024109,4]
[365719346,1749849043599,-626.84,0.00024109,4]
[365719347,1749849043607,-990.32,0.00024109,4]
[365719348,1749849043618,-460.0,0.00024109,4]
[365719349,1749849043628,-1305.37,0.00024109,4]
[365719350,1749849043638,-897.99,0.00024109,4]
[365719351,1749849043647,-5854.95,0.00024109,4]
[365719352,1749849043656,-552.0574046,0.00024109,4]
[365719353,1749849043666,-698.79,0.00024109,4]
[365719354,1749849043675,-1745.0,0.0002411,3]
[365719355,1749849043684,-1745.0,0.0002411,3]
[365719356,1749849043693,-1255.55281195,0.0002411,3]
[365719357,1749849043702,-166.0,0.0002411,3]
[365719358,1749849043711,-166.0,0.0002411,3]
[365719359,1749849043720,-172.0,0.0002411,3]
[365719360,1749849043730,-317.0,0.0002411,3]
[365719361,1749849043739,-317.0,0.0002411,3]
[365719362,1749849043749,-317.0,0.0002411,3]
[365719363,1749849043758,-317.0,0.0002411,3]
[365719364,1749849043767,-317.0,0.0002411,3]
[365719365,1749849043776,-317.0,0.0002411,3]
[365719366,1749849043785,-317.0,0.0002411,3]
[365719367,1749849043795,-317.0,0.0002411,3]
[365719368,1749849043804,-317.0,0.0002411,3]
[365719369,1749849043813,-317.0,0.0002411,3]
[365719370,1749849043823,-317.0,0.0002411,3]
[365719371,1749849043833,-317.0,0.0002411,3]
[365719372,1749849043842,-317.0,0.0002411,3]
[365719373,1749849043852,-317.0,0.0002411,3]
[365719374,1749849043861,-317.0,0.0002411,3]
[365719375,1749849043871,-317.0,0.0002411,3]
[365719376,1749849043880,-317.0,0.0002411,3]
[365719377,1749849043890,-317.0,0.0002411,3]
[365719378,1749849043900,-317.0,0.0002411,3]
[365719379,1749849043909,-317.0,0.0002411,3]
[365719380,1749849043919,-317.0,0.0002411,3]
[365719381,1749849043928,-317.0,0.0002411,3]
[365719382,1749849043937,-317.0,0.0002411,3]
[365719383,1749849043946,-317.0,0.0002411,3]
[365719384,1749849043955,-317.0,0.0002411,3]
[365719385,1749849043966,-244.88134464,0.0002411,3]
[365719386,1749849043975,-151.0,0.00024115,7]
[365719387,1749849043985,-719.25,0.00024115,2]
[365719388,1749849043994,-500.0,0.0002412,2]
[365719389,1749849044004,-151.0,0.00024136,7]
[365719390,1749849044014,-289.627637,0.00024136,7]
[365719391,1749849044023,-289.627637,0.00024136,7]
[365719392,1749849044032,-151.0,0.00024136,7]
[365719393,1749849044042,-151.0,0.00024136,7]
[365719394,1749849044051,-895.44837804,0.00024176,10]
[365719395,1749849044061,-215.0738,0.00024199,2]
[365719396,1749849044070,-200.0,0.000242,10]
[365719397,1749849044079,-835.28007164,0.000242,3]
[365719398,1749849044089,-835.28007164,0.000242,10]
[365719399,1749849044098,-815.55389873,0.000242,3]
[365719400,1749849044108,-12531.02669373,0.000242,10]
[365719401,1749849044117,-160.0,0.000242,3]
[365719402,1749849044127,-160.0,0.000242,10]
[365719403,1749849044136,-424.32678023,0.000242,3]
[365719404,1749849044146,-424.32678023,0.000242,10]
[365719405,1749849044155,-315.3059208,0.000242,10]
[365719406,1749849044165,-229.78555783,0.000242,3]
[365719407,1749849044174,-229.78555783,0.000242,10]
[365719408,1749849044183,-160.0,0.000242,3]
[365719409,1749849044193,-160.0,0.000242,10]
[365719410,1749849044202,-719.25,0.00024215,4]
[365719411,1749849044212,-1487.83769631,0.00024221,2]
[365719412,1749849044221,-484.0,0.00024226,2]
[365719413,1749849044230,-632.35509015,0.00024242,2]
[365719414,1749849044240,-1294.29669004,0.0002425,2]
[365719415,1749849044249,-160.727909,0.00024264,7]
[365719416,1749849044259,-160.727909,0.00024264,7]
[365719417,1749849044268,-151.0,0.00024264,7]
[365719418,1749849044277,-151.0,0.00024264,7]
[365719419,1749849044289,-895.44837804,0.00024279,10]
[365719420,1749849044300,-1487.83769625,0.0002429,2]
[365719421,1749849044310,-311.75260451,0.00024292,2]
[365719422,1749849044319,-964.0,0.000243,2]
[365719423,1749849044328,-2093.760783,0.00024303,3]
[365719424,1749849044337,-2200.0,0.00024312,2]
[365719425,1749849044347,-155.0,0.00024312,2]
[365719426,1749849044439,-719.25,0.00024315,4]
[365719427,1749849044449,-2780.5,0.00024315,12]
[365719428,1749849044458,-500.48958838,0.00024321,2]
[365719429,1749849044468,-500.0,0.00024321,2]
[365719430,1749849044480,-1000.0,0.00024321,2]
[365719431,1749849044489,-1000.0,0.00024321,2]
[365719432,1749849044499,-1000.0,0.00024321,2]
[365719433,1749849044508,-504.28907664,0.00024321,2]
[365719434,1749849044518,-1000.0,0.00024321,2]
[365719435,1749849044528,-1000.0,0.00024321,2]
[365719436,1749849044537,-130604.59272966,0.00024321,3]
[365719437,1749849044547,-151.0,0.00024321,7]
[365719438,1749849044557,-151.0,0.00024321,7]
[365719439,1749849044567,-151.0,0.00024321,7]
[365719440,1749849044576,-4807.561423,0.00024321,2]
[365719441,1749849044586,-4807.561423,0.00024321,2]
[365719442,1749849044595,-151.0,0.00024321,7]
[365719443,1749849044604,-153.164763,0.00024321,7]
[365719444,1749849044613,-151.0,0.00024321,7]
[365719445,1749849044623,-151.0,0.00024333,7]
[365719446,1749849044632,-278.16157,0.00024333,7]
[365719447,1749849044642,-151.0,0.00024334,7]
[365719448,1749849044651,-273.047409,0.00024334,7]
[365719449,1749849044660,-273.047409,0.00024334,7]
[365719450,1749849044669,-1487.83769625,0.00024359,2]
[365719451,1749849044680,-168.0,0.00024381,2]
[365719452,1749849044689,-160.0,0.00024382,2]
[365719453,1749849044698,-460.0,0.00024382,4]
[365719454,1749849044707,-503.34,0.00024382,4]
[365719455,1749849044716,-582.67,0.00024382,4]
[365719456,1749849044725,-752.24,0.00024382,4]
[365719457,1749849044734,-895.44837804,0.00024383,11]
[365719458,1749849044743,-1352.84,0.00024383,4]
[365719459,1749849044752,-520.57,0.00024383,4]
[365719460,1749849044762,-1130.26,0.00024383,4]
[365719461,1749849044772,-761.79,0.00024383,4]
[365719462,1749849044786,-1164.15,0.00024383,4]
[365719463,1749849044795,-460.0,0.00024383,4]
[365719464,1749849044805,-626.84,0.00024383,4]
[365719465,1749849044814,-990.32,0.00024383,4]
[365719466,1749849044824,-460.0,0.00024383,4]
[365719467,1749849044833,-1305.37,0.00024383,4]
[365719468,1749849044843,-897.99,0.00024383,4]
[365719469,1749849044852,-5854.95,0.00024383,4]
[365719470,1749849044868,-698.79,0.00024383,4]
[365719471,1749849044887,-835.28007164,0.000244,3]
[365719472,1749849044896,-424.32678023,0.000244,3]
[365719473,1749849044906,-160.0,0.000244,3]
[365719474,1749849044915,-719.25,0.00024415,6]
[365719475,1749849044924,-2000.0,0.00024416,2]
[365719476,1749849044935,-1487.83769625,0.00024428,2]
[365719477,1749849044943,-15157.93772815,0.00024469,7]
[365719478,1749849044952,-5000.0,0.00024474,2]
[365719479,1749849044961,-895.44837804,0.00024486,11]
[365719480,1749849044970,-1487.83769625,0.00024497,2]
[365719481,1749849044979,-293.0,0.000245,30]
[365719482,1749849044989,-151.0,0.000245,7]
[365719483,1749849044998,-117375.35,0.000245,7]
[365719484,1749849045007,-719.25,0.00024515,4]
[365719485,1749849045017,-37091.01067005,0.0002452,2]
[365719486,1749849045026,-12807.68704036,0.0002452,2]
[365719487,1749849045036,-1001.89008847,0.00024521,2]
[365719488,1749849045045,-702.97768371,0.00024521,2]
[365719489,1749849045055,-250.0,0.00024521,2]
[365719490,1749849045064,-1487.83769625,0.00024566,2]
[365719491,1749849045074,-895.44837804,0.0002459,11]
[365719492,1749849045083,-719.25,0.00024615,2]
[365719493,1749849045093,-1487.83769625,0.00024635,2]
[365719494,1749849045102,-500.0,0.00024644,2]
[365719495,1749849045112,-2400.0,0.00024644,2]
[365719496,1749849045121,-5382.37911245,0.0002465,2]
[365719497,1749849045131,-460.0,0.00024656,4]
[365719498,1749849045140,-503.34,0.00024656,4]
[365719499,1749849045149,-582.67,0.00024656,4]
[365719500,1749849045158,-752.24,0.00024656,4]
[365719501,1749849045167,-1352.84,0.00024657,4]
[365719502,1749849045177,-520.57,0.00024657,4]
[365719503,1749849045186,-1130.26,0.00024657,4]
[365719504,1749849045195,-761.79,0.00024657,4]
[365719505,1749849045204,-1164.15,0.00024657,4]
[365719506,1749849045213,-246.24,0.00024657,4]
[365719507,1749849045223,-626.84,0.00024657,4]
[365719508,1749849045233,-990.32,0.00024657,4]
[365719509,1749849045242,-460.0,0.00024657,4]
[365719510,1749849045252,-1305.37,0.00024657,4]
[365719511,1749849045262,-897.99,0.00024657,4]
[365719512,1749849045271,-151.0,0.00024657,7]
[365719513,1749849045281,-5854.95,0.00024657,4]
[365719514,1749849045291,-698.79,0.00024657,4]
[365719515,1749849045301,-1000.0,0.00024658,2]
[365719516,1749849045310,-1000.0,0.00024658,2]
[365719517,1749849045319,-1000.0,0.00024658,2]
[365719518,1749849045329,-1000.0,0.00024658,2]
[365719519,1749849045338,-1000.0,0.00024658,2]
[365719520,1749849045348,-1000.0,0.00024658,2]
[365719521,1749849045357,-1000.0,0.00024658,2]
[365719522,1749849045366,-1000.0,0.00024658,2]
[365719523,1749849045376,-1000.0,0.00024658,2]
[365719524,1749849045385,-1000.0,0.00024658,2]
[365719525,1749849045394,-1000.0,0.00024658,2]
[365719526,1749849045404,-200.0,0.00024658,15]
[365719527,1749849045413,-1000.0,0.00024658,2]
[365719528,1749849045422,-151.0,0.00024658,7]
[365719529,1749849045433,-895.44837804,0.00024693,11]
[365719530,1749849045442,-158.544721,0.000247,7]
[365719531,1749849045451,-158.544721,0.000247,7]
[365719532,1749849045461,-151.0,0.000247,7]
[365719533,1749849045472,-151.0,0.000247,7]
[365719534,1749849045482,-151.0,0.000247,7]
[365719535,1749849045491,-151.0,0.000247,7]
[365719536,1749849045500,-151.0,0.000247,7]
[365719537,1749849045510,-602.4,0.000247,31]
[365719538,1749849045519,-602.4,0.000247,31]
[365719539,1749849045528,-602.4,0.000247,31]
[365719540,1749849045537,-602.4,0.000247,31]
[365719541,1749849045548,-602.4,0.000247,31]
[365719542,1749849045558,-602.4,0.000247,31]
[365719543,1749849045568,-602.4,0.000247,31]
[365719544,1749849045577,-602.4,0.000247,31]
[365719545,1749849045586,-602.4,0.000247,31]
[365719546,1749849045595,-602.4,0.000247,31]
[365719547,1749849045605,-602.4,0.000247,31]
[365719548,1749849045614,-602.4,0.000247,31]
[365719549,1749849045623,-602.4,0.000247,31]
[365719550,1749849045632,-602.4,0.000247,31]
[365719552,1749849045641,-602.4,0.000247,31]
[365719553,1749849045650,-602.4,0.000247,31]
[365719555,1749849045659,-1150.672385,0.000247,7]
[365719557,1749849045668,-1150.672385,0.000247,7]
[365719559,1749849045678,-1487.83769625,0.00024704,2]
[365719560,1749849045687,-719.25,0.00024715,5]
[365719562,1749849045696,-1285.0,0.00024742,2]
[365719564,1749849045705,-1487.83769625,0.00024773,2]
[365719565,1749849045714,-151.0,0.00024795,2]
[365719566,1749849045723,-500.0,0.00024795,2]
[365719567,1749849045732,-500.0,0.00024795,2]
[365719568,1749849045741,-895.44837804,0.00024797,11]
[365719569,1749849045750,-2000.0,0.000248,2]
[365719570,1749849045759,-2000.0,0.000248,2]
[365719571,1749849045768,-2000.0,0.000248,2]
[365719572,1749849045777,-2000.0,0.000248,2]
[365719573,1749849045787,-156.0,0.000248,2]
[365719574,1749849045796,-151.0,0.000248,7]
[365719575,1749849045805,-151.0,0.000248,7]
[365719576,1749849045815,-151.0,0.000248,7]
[365719577,1749849045824,-151.0,0.000248,7]
[365719578,1749849045834,-151.0,0.000248,7]
[365719579,1749849045843,-151.0,0.000248,7]
[365719580,1749849045852,-160.727909,0.000248,7]
[365719581,1749849045862,-160.727909,0.000248,7]
[365719582,1749849045871,-151.0,0.000248,7]
[365719583,1749849045880,-151.0,0.000248,7]
[365719584,1749849045889,-289.627637,0.000248,7]
[365719585,1749849045898,-170.075529,0.000248,7]
[365719586,1749849045907,-170.075529,0.000248,7]
[365719587,1749849045917,-289.627637,0.000248,7]
[365719588,1749849045926,-170.075529,0.000248,7]
[365719589,1749849045935,-170.075529,0.000248,7]
[365719590,1749849045944,-151.0,0.000248,7]
[365719591,1749849045953,-151.0,0.000248,7]
[365719592,1749849045962,-151.0,0.000248,7]
[365719593,1749849045974,-301.655952,0.000248,7]
[365719594,1749849045983,-301.655952,0.000248,7]
[365719595,1749849045992,-240.451578,0.000248,7]
[365719596,1749849046001,-151.0,0.000248,7]
[365719597,1749849046011,-240.451578,0.000248,7]
[365719598,1749849046020,-151.0,0.000248,7]
[365719599,1749849046029,-151.0,0.000248,7]
[365719600,1749849046038,-151.0,0.000248,7]
[365719601,1749849046047,-151.0,0.000248,7]
[365719602,1749849046057,-151.0,0.000248,7]
[365719603,1749849046066,-151.0,0.000248,7]
[365719604,1749849046075,-150.0,0.000248,5]
[365719605,1749849046084,-151.0,0.000248,7]
[365719606,1749849046094,-151.0,0.000248,7]
[365719607,1749849046103,-150.0,0.000248,30]
[365719608,1749849046112,-43778.43110309,0.000248,2]
[365719609,1749849046233,-460.0,0.00021368,4]
[365719610,1749849046242,-460.0,0.00021642,4]
[365719611,1749849046252,-460.0,0.00021916,4]
[365719612,1749849046261,-1305.18170427,0.000248,2]
[365719617,1749849211071,167.999764,0.00013699,2]
[365719618,1749849282835,2000.0,0.00021047,120]
[365719619,1749849313547,500.0,0.000238,120]
[365719620,1749849314307,500.0,0.000238,120]
[365719621,1749849315080,500.0,0.000238,120]
[365719622,1749849315856,500.0,0.000238,120]
[365719623,1749849316621,500.0,0.000238,120]
[365719624,1749849317389,500.0,0.000238,120]
[365719625,1749849318161,500.0,0.000238,120]
[365719626,1749849319119,500.0,0.000238,120]
[365719627,1749849319888,500.0,0.000238,120]
[365719628,1749849320681,500.0,0.000238,120]
[365719629,1749849321507,500.0,0.000238,120]
[365719630,1749849322271,500.0,0.000238,120]
[365719631,1749849323057,500.0,0.000238,120]
[365719632,1749849323819,500.0,0.000238,120]
[365719633,1749849324603,500.0,0.000238,120]
[365719634,1749849325594,500.0,0.000238,120]
[365719635,1749849326349,500.0,0.000238,120]
[365719636,1749849327140,500.0,0.000238,120]
[365719637,1749849328349,500.0,0.000238,120]
[365719638,1749849329116,500.0,0.000238,120]
[365719639,1749849329879,500.0,0.000238,120]
[365719640,1749849330652,500.0,0.000238,120]
[365719641,1749849330766,200.0,0.00023752,120]
[365719642,1749849332375,500.0,0.000238,120]
[365719643,1749849333147,500.0,0.000238,120]
[365719644,1749849333941,500.0,0.000238,120]
[365719645,1749849334871,500.0,0.000238,120]
[365719646,1749849335659,500.0,0.000238,120]
[365719647,1749849336430,500.0,0.000238,120]
[365719648,1749849337194,500.0,0.000238,120]
[365719649,1749849338053,500.0,0.000238,120]
[365719650,1749849338705,500.0,0.000238,120]
[365719651,1749849339478,500.0,0.000238,120]
[365719652,1749849340277,500.0,0.000238,120]
[365719653,1749849341014,500.0,0.000238,120]
[365719654,1749849341798,500.0,0.000238,120]
[365719655,1749849342636,500.0,0.000238,120]
[365719656,1749849343401,500.0,0.000238,120]
[365719657,1749849344167,500.0,0.000238,120]
[365719660,1749849391396,200.0,0.00024267,120]
[365719661,1749849409943,500.0,0.000238,120]
[365719662,1749849410712,500.0,0.000238,120]
[365719663,1749849411495,500.0,0.000238,120]
[365719664,1749849412267,500.0,0.000238,120]
[365719665,1749849413117,500.0,0.000238,120]
[365719666,1749849413801,500.0,0.000238,120]
[365719667,1749849415007,500.0,0.000238,120]
[365719668,1749849415778,500.0,0.000238,120]
[365719669,1749849417087,500.0,0.000238,120]
[365719670,1749849417862,500.0,0.000238,120]
[365719671,1749849418646,500.0,0.000238,120]
[365719672,1749849419411,500.0,0.000238,120]
[365719673,1749849420202,500.0,0.000238,120]
[365719674,1749849422154,500.0,0.000238,120]
[365719675,1749849422968,500.0,0.000238,120]
[365719676,1749849423744,500.0,0.000238,120]
[365719677,1749849424518,500.0,0.000238,120]
[365719678,1749849425351,500.0,0.000238,120]
[365719679,1749849426116,500.0,0.000238,120]
[365719680,1749849426908,500.0,0.000238,120]
[365719681,1749849427694,500.0,0.000238,120]
[365719682,1749849428462,500.0,0.000238,120]
[365719683,1749849429250,500.0,0.000238,120]
[365719684,1749849430073,500.0,0.000238,120]
[365719685,1749849430827,500.0,0.000238,120]
[365719686,1749849431589,500.0,0.000238,120]
[365719687,1749849432804,500.0,0.000238,120]
[365719688,1749849433676,500.0,0.000238,120]
[365719689,1749849434434,500.0,0.000238,120]
[365719690,1749849435263,500.0,0.000238,120]
[365719691,1749849436020,500.0,0.000238,120]
[365719692,1749849436812,500.0,0.000238,120]
[365719693,1749849437790,500.0,0.000238,120]
[365719694,1749849438577,500.0,0.000238,120]
[365719695,1749849439357,500.0,0.000238,120]
[365719696,1749849440148,435.23,0.000238,120]
[365719697,1749849451312,200.0,0.000237,120]
[365719699,1749849506421,500.0,0.000238,120]
[365719700,1749849514792,162.127284,0.00020469,120]
[365719701,1749849533087,150.0,0.00024934,60]
[365719702,1749849534197,150.0,0.00024934,90]
[365719706,1749849813762,339.77333742,0.00024657,120]
[365719707,1749849839386,150.0,0.00024937,60]